Cogmind - Beta 14 @@@ ROGUE MODE // 2024.11.02 @ 03:45:37 Player: Miles Result: Self-destructed Performance ------------- Evolutions (1) 500 Regions Visited (3) 600 Robots Destroyed (16) 80 Value Destroyed (457) 457 Prototype IDs (0) 0 Alien Tech Used (0) 0 Bonus (0) 0 TOTAL SCORE: 1637 Bonus ------- None Cogmind --------- Core Integrity 191/400 Matter 295/300 Energy 100/100 System Corruption 0% Temperature Cool (0) Movement Core (150) Ox2 Location -9/Materials Parts ------- > --- POWER (1) -------- (None) > --- PROPULSION (3) --- (None) > --- UTILITY (3) ------ Small Storage Unit > --- WEAPON (2) ------- Hammer > --- INVENTORY (8) ---- EMP Blaster Grenade Launcher Peak State ------------ > --- POWER ------------ Light Ion Engine > --- PROPULSION ------- Flight Unit Flight Unit Flight Unit > --- UTILITY ---------- Small Storage Unit > --- WEAPON ----------- EM Pulse Gun EMP Blaster > --- INVENTORY -------- Grenade Launcher [Rating: 8] Favorites ----------- Power Light Ion Engine Engine Light Ion Engine Propulsion Flight Unit Leg Aluminum Leg Wheel Compact Wheel Flight Unit Flight Unit Utility Small Storage Unit Storage Small Storage Unit Weapon Light Assault Rifle Energy Gun EM Pulse Gun Ballistic Gun Light Assault Rifle Launcher Grenade Launcher Impact Weapon Hammer Build | -11 -10 -10 -9 ------- Run | Yrd Mat Min Mat Slots Evolved 2 | . . . 2 Power . | . . . . Propulsion 1 | . . . 1 Utility 1 | . . . 1 Weapon . | . . . . Parts Attached 25 | 5 10 1 9 Power 4 | 1 3 . . Engine 4 | 1 3 . . Core . | . . . . Reactor . | . . . . Propulsion 8 | 2 5 . 1 Treads . | . . . . Leg 2 | . 2 . . Wheel 2 | 2 . . . Hover . | . . . . Flight 4 | . 3 . 1 Utility 3 | . 1 . 2 Device . | . . . . Storage 3 | . 1 . 2 Processor . | . . . . Hackware . | . . . . Protection . | . . . . Artifact . | . . . . Weapon 10 | 2 1 1 6 Energy Gun 3 | . 1 . 2 Energy Cannon . | . . . . Ballistic Gun 3 | 2 . . 1 Ballistic Cannon . | . . . . Launcher 3 | . . 1 2 Special Weapon . | . . . . Impact Weapon 1 | . . . 1 Slashing Weapon . | . . . . Piercing Weapon . | . . . . Special Melee Weapon . | . . . . Unidentified Prototypes . | . . . . Parts Lost 8 | . 2 1 5 Power 2 | . 1 . 1 Propulsion 4 | . 1 . 3 Utility . | . . . . Weapon 2 | . . 1 1 Highest Loss Streak 3 | . 2 1 3 To Critical Strikes . | . . . . Average Slot Usage (%) 59 | . 61 57 56 Engine 10 | . 12 14 7 Wheel 7 | . 13 . . Flight 17 | . 9 28 26 Storage 2 | . . . 4 Energy Gun 1 | . . . 1 Ballistic Gun 13 | . 21 . 6 Launcher 2 | . . 14 3 Impact Weapon 2 | . . . 7 Peak Build Rating 8 | 5 6 5 8 Average Rating 4 | 4 4 4 5 On Entrance 3 | . 5 4 4 Naked Turns . | . . . . Heaviest Build 13 | 6 11 6 13 Greatest Support 26 | 26 26 8 12 Greatest Overweight (x) 1 | . 1 . 1 Average Overweight (x) . | . . . . Largest Inventory Capacity 8 | 5 8 5 8 Average Capacity 5 | 5 5 5 6 Most Carried 5 | 5 5 4 3 Average Carried 3 | 3 4 4 2 Final Capacity 8 | 5 5 5 8 Final Carried 5 | 5 5 4 2 Class Distribution -------------------- 75% | Mutant 24% | Scavenger-Mutant Dominant Class ---------------- Mutant | -10/Materials Mutant | -10/Mines Scavenger-Mutant | -9/Materials Resources | -11 -10 -10 -9 ----------- Run | Yrd Mat Min Mat Matter Collected 560 | 118 224 55 163 Remotely . | . . . . Salvage Created 518 | . 232 65 221 Parts 22 | . 12 1 9 Haulers Intercepted . | . . . . Recyclers Shooed 1 | . 1 . . Parts Field Recycled . | . . . . Retrieved Matter . | . . . . Parts Self-Destructed . | . . . . Prevented . | . . . . Kills | -11 -10 -10 -9 ------- Run | Yrd Mat Min Mat Combat Hostiles Destroyed 14 | . 6 2 6 Guns 8 | . 6 . 2 AOE 4 | . . 2 2 Classes Destroyed 5 | . 3 . 2 Recycler 1 | . 1 . . Operator 1 | . . . 1 Swarmer 4 | . 4 . . Grunt 9 | . 2 2 5 Brawler 1 | . . . 1 Best Kill Streak 4 | . 4 2 4 Combat Bots Only 3 | . 3 2 3 Max Kills in Single Turn 1 | . 1 1 1 Gunslinging . | . . . . Exploded 1 | . . 1 1 Melee . | . . . . Uniques/NPCs Destroyed . | . . . . Combat | -11 -10 -10 -9 -------- Run | Yrd Mat Min Mat Hostile Shots Fired 99 | . 42 2 55 Missed 31 | . 12 1 18 Damage Taken 784 | . 256 26 502 Core 233 | . 24 . 209 Absorbed by Shields . | . . . . Core Remaining (%) 95 | 100 . 90 . Volleys Fired 38 | . 22 2 14 Largest 2 | . 2 1 1 Hottest 60 | . 60 30 40 Shots Fired 55 | . 39 2 14 Gun 47 | . 39 . 8 Cannon . | . . . . Launcher 8 | . . 2 6 Special . | . . . . Kinetic 41 | . 37 . 4 Thermal . | . . . . Explosive 5 | . . 2 3 Electromagnetic 9 | . 2 . 7 Robot Hit Streak 9 | . 9 4 3 Robot Miss Streak 5 | . 3 . 5 Penetration Max . | . . . . Secondary Targets . | . . . . Shots Hit Robots 50 | . 28 2 20 Core Hits 23 | . 11 4 8 Critical Kills 1 | . 1 . . Critical Parts Destroyed 3 | . . . 3 Critical Strikes 5 | . 1 . 4 Destroy 1 | . 1 . . Smash 4 | . . . 4 Melee Attacks 15 | . . . 15 Impact 15 | . . . 15 Slashing . | . . . . Piercing . | . . . . Sneak Attacks . | . . . . Combat Hostiles . | . . . . Follow-up Attacks . | . . . . Damage Inflicted 1020 | . 298 104 618 Guns 376 | . 298 . 78 Cannons . | . . . . Explosions 347 | . . 104 243 Melee 297 | . . . 297 Ramming . | . . . . Kinetic 342 | . 287 . 55 Thermal 20 | . . . 20 Explosive 268 | . . 104 164 Electromagnetic 93 | . 11 . 82 Impact 297 | . . . 297 Slashing . | . . . . Piercing . | . . . . Highest Corruption . | . . . . Average Corruption . | . . . . Corruption Purged . | . . . . Corruption Blocked . | . . . . Overload Shots . | . . . . Overflow Damage 74 | . . . 74 Projectiles . | . . . . Explosions . | . . . . Melee 74 | . . . 74 Knockbacks . | . . . . Impact . | . . . . Kinetic . | . . . . Secondary . | . . . . Self-Inflicted Damage 18 | . . 8 10 Shots 3 | . . 1 2 Rammed . | . . . . Targets Rammed . | . . . . Kicked . | . . . . Crushed . | . . . . Highest Temperature 12 | . 12 6 6 Average Temperature 5 | . 6 4 3 Received Heat Transfer 318 | . 42 9 267 Siege Activations . | . . . . Robots Corrupted 2 | . . . 2 Combat Hostiles 2 | . . . 2 Parts Fried . | . . . . Impact Corruptions 5 | . . . 5 Robots Melted . | . . . . Combat Hostiles . | . . . . Parts Melted . | . . . . Heat Transferred 50 | . . . 50 Parts Sabotaged . | . . . . Parts Stolen . | . . . . Parts Stripped . | . . . . Power Chain Reactions 1 | . . . 1 Alert | -11 -10 -10 -9 ------- Run | Yrd Mat Min Mat Peak Influence 313 | . 230 141 313 Initial 89 | . . 89 54 Average 148 | . 141 138 206 Maximum Alert Level 1 | . 1 . 1 Low Security (%) 59 | 100 67 100 26 Level 1 40 | . 32 . 73 Level 2 . | . . . . Level 3 . | . . . . Level 4 . | . . . . Level 5 . | . . . . High Security . | . . . . Max Security . | . . . . Squads Dispatched 3 | . 1 . 2 Investigation 1 | . . . 1 Extermination . | . . . . Reinforcement 2 | . 1 . 1 Assault . | . . . . Garrison . | . . . . Intercept . | . . . . Searches Triggered . | . . . . Construction Impeded . | . . . . Haulers Reinforced . | . . . . Active Scanning Responses . | . . . . Cargo Convoy Interrupts . | . . . . Stealth | -11 -10 -10 -9 --------- Run | Yrd Mat Min Mat Distress Signals . | . . . . Communications Jammed . | . . . . Distress Signals . | . . . . Times Spotted 29 | . 14 2 13 Peak Tracking Total 5 | . 3 2 5 Tactical Retreats 3 | . 3 . . Traps | -11 -10 -10 -9 ------- Run | Yrd Mat Min Mat Traps Triggered . | . . . . Indirectly . | . . . . Trap Hack Attempts . | . . . . Triggered . | . . . . Disarmed . | . . . . Reprogrammed . | . . . . Reused . | . . . . Traps Extracted . | . . . . Installed . | . . . . Triggered . | . . . . Machines | -11 -10 -10 -9 ---------- Run | Yrd Mat Min Mat Machines Disabled 4 | . . . 4 Max in Single Turn 2 | . . . 2 Machines Repaired . | . . . . Machines Dismantled . | . . . . Machines Sabotaged . | . . . . Overloaded Fab Kills . | . . . . Hacking | -11 -10 -10 -9 --------- Run | Yrd Mat Min Mat Machines Accessed 2 | . . . 2 Terminals 2 | . . . 2 Fabricators . | . . . . Repair Stations . | . . . . Recycling Units . | . . . . Scanalyzers . | . . . . Garrison Access . | . . . . Total Hacks 6 | . . . 6 Successful 4 | . . . 4 Failed 2 | . . . 2 Catastrophic . | . . . . Database Lockouts . | . . . . Manual . | . . . . Terminals 6 | . . . 6 Fabricators . | . . . . Repair Stations . | . . . . Recycling Units . | . . . . Scanalyzers . | . . . . Garrison Access . | . . . . Terminal Hacks 4 | . . . 4 Record 4 | . . . 4 Fabricator Hacks . | . . . . Repair Station Hacks . | . . . . Recycling Unit Hacks . | . . . . Scanalyzer . | . . . . Garrison Access Hacks . | . . . . Unauthorized Hacks . | . . . . Terminals . | . . . . Fabricators . | . . . . Repair Stations . | . . . . Recycling Units . | . . . . Scanalyzers . | . . . . Garrison Access . | . . . . Data Cores Recovered . | . . . . Used . | . . . . Hacking Detections 1 | . . . 1 Full Trace Events 1 | . . . 1 Feedback Events . | . . . . Feedback Blocked . | . . . . Robot Schematics Acquired . | . . . . Robots Built . | . . . . Authchips . | . . . . Time . | . . . . Total Robot Build Rating . | . . . . Part Schematics Acquired . | . . . . Parts Built . | . . . . Authchips . | . . . . Time . | . . . . Total Part Build Rating . | . . . . Parts Repaired . | . . . . Time . | . . . . Parts Recycled . | . . . . Recycled Matter . | . . . . Retrieved Matter . | . . . . Retrieved Components . | . . . . Parts Scanalyzed . | . . . . Part Schematics Acquired . | . . . . Parts Damaged . | . . . . Bothacking | -11 -10 -10 -9 ------------ Run | Yrd Mat Min Mat Used RIF Installer . | . . . . Robots Hacked . | . . . . Non-combat . | . . . . Combat . | . . . . Robot Hacks Applied . | . . . . Relay Couplers Released . | . . . . Fabnet Peak Effective % . | . . . . Robots Rewired . | . . . . Allies Hacked . | . . . . Hacks Repelled . | . . . . Allies | -11 -10 -10 -9 -------- Run | Yrd Mat Min Mat Total Allies . | . . . . Largest Group . | . . . . Highest-Rated Group . | . . . . Highest-Rated Ally . | . . . . Total Orders . | . . . . Ally Attacks . | . . . . Total Damage . | . . . . Kills . | . . . . Allies Corrupted . | . . . . Allies Melted . | . . . . Intel | -11 -10 -10 -9 ------- Run | Yrd Mat Min Mat Robot Analysis Total . | . . . . Derelict Logs Recovered . | . . . . Drone Launches . | . . . . Drone Recoveries . | . . . . Exploration | -11 -10 -10 -9 ------------- Run | Yrd Mat Min Mat Turns Passed 644 | 68 306 54 216 Spaces Moved 858 | 60 362 131 305 Core 4 | 3 . . 1 Treads . | . . . . Legs 5 | . 5 . . Wheels 129 | 57 72 . . Hover . | . . . . Flight 720 | . 285 131 304 Fastest Speed 34 | 50 37 37 34 Average Speed 45 | 88 51 37 34 Slowest Speed 120 | 100 120 37 120 Overloaded Moves . | . . . . Propulsion Burnouts . | . . . . Robots Hopped 4 | . 2 1 1 Cave-ins Triggered . | . . . . Exploration Rate (%) 27 | 4 50 33 22 Regions Visited 3 Branch Regions 1 Pre-discovered Areas . | . . . . Known Exits Taken . | . . . . Unknown Exits Taken 3 | 1 1 1 . Scrap Searched . | . . . . Spaces Dug . | . . . . Terrain Destroyed 30 | . . 13 17 Melee . | . . . . Projectile . | . . . . AOE 30 | . . 13 17 Terrain Rammed . | . . . . Walls Destroyed . | . . . . Machines Disabled . | . . . . Actions | -11 -10 -10 -9 --------- Run | Yrd Mat Min Mat Total 1028 | 74 448 132 374 Wait 68 | . 42 . 26 Move 847 | 59 357 128 303 Hop 4 | . 2 1 1 Pick Up 18 | 10 6 . 2 Fast Attach 2 | . 2 . . Attach 20 | 5 7 1 7 Detach 5 | . 2 . 3 Swap 3 | . 1 . 2 Drop 8 | . 7 . 1 Fire 38 | . 22 2 14 Melee 15 | . . . 15 Ram . | . . . . Kick . | . . . . Crush . | . . . . Escape Stasis . | . . . . Rewire . | . . . . Trap . | . . . . Miscellaneous . | . . . . Route ------- -11/Scrapyard -10/Materials (discovered 3 exits: *Mat / [*Min x2]) -10/Mines -9/Materials History --------- Turn | Location | Event 30 | -11/Scrapyard | Discovered new exit (range 15) 69 | -11/Scrapyard | Entered Materials 241 | -10/Materials | Discovered new exit (range 7) 242 | -10/Materials | Discovered new exit (range 10) 317 | -10/Materials | Build established: Mutant 353 | -10/Materials | Discovered new exit (range 16) 375 | -10/Materials | Entered Mines 392 | -10/Mines | Met a Derelict bent on vengeance 420 | -10/Mines | Discovered new exit (range 7) 429 | -10/Mines | Entered Materials 429 | -9/Materials | Evolved 2 slots: Propulsion x1, Utility x1 645 | -9/Materials | Core integrity fell below 50% 645 | -9/Materials | Self-destructed Last Messages --------------- 00617_ Flight Unit destroyed. 00618_ K-01 Serf collects debris. 00622_ Y-45 Defender suffers critical hit (Smash). 00622_ Destroyed Lgt. Treads. 00622_ Y-45 Defender system corrupted by crushing effect. 00630_ Y-45 Defender suffers critical hit (Smash). 00630_ Destroyed Hvy. Assault Rifle. 00630_ Y-45 Defender system corrupted by crushing effect. 00631_ Y-45 Defender misfires. 00633_ Y-45 Defender suffers critical hit (Smash). 00634_ Critical hit (Burn: +37). 00635_ Y-45 Defender IFF system glitched. 00637_ Shotgun destroyed. 00641_ Y-45 Defender IFF system glitched. 00644_ M-13 Machinist destroyed. Map ----- +----------------------------------------------------+ | ?????????????????????????????????????????????????? | | ?????????????????????????????????????????????????? | | ?????????????????????????????????????????????????? | | ?????????????????????????????????????????????????? | | ?????????????????????????????????????????????????? | | ?????????????????????????????????????????????????? | | ?????????????????????????????????????????????????? | | ??????????????????????????????????????????????#### | | ??????????????????????????????????????????????# T | | ??????????????????????????????????????????????# | | ???????????????????????????????????? ?????????# | | ????????????????????????????????????? ????????# | | ?????????????????????????????????????? ???????# | | ??????????????????????????????????????# ??????# " | | ????????????????????#+????????????????# ?????# " | | ????????????????????# ????????????#???# ????# " | | ????????????????????# #?????????? #??## ##### | | ????????????????????# #????????? #??# # | | ????????????????????# #????????" #??# " | | ????????????????????# #??????? ???# " | | ????????????????????# #?????? ????# | | ????????????????????# #????? ??????# = ###+### | | ??????????? ????## ######Y##??????####### | | ???????????? # g % ############## | | ???????????????""" + w + | | ???????????????????# @ Y! ############## | | ???????????????????### ####* #????????????# | | ?????????????????????# #??# #????????????# | | ?????????????????????# #??# #????????????# | | ?????????????????????# #??# %=#????????????# | | ?????????????????????# #??# ! #????????????# | | ?????????????????????# #??# #????????????# """ | | ?????????????????????# #??# #????????????# """ | | ?????????????????????#+#??# +????????????#[ """ | | ??????????????????????????# #????????????# | | ??????????????????????????# #????????????####### | | ??????????????????????????# #??????????????????? | | ?????????????????????????? ??????????????????? | | ?????????????????????????? ??????????????????? | | ?????????????????????????? ??????????????????? | | ?????????????????????????? ??????????????????? | | ?????????????????????????????????????????????????? | | ?????????????????????????????????????????????????? | | ?????????????????????????????????????????????????? | | ?????????????????????????????????????????????????? | | ?????????????????????????????????????????????????? | | ?????????????????????????????????????????????????? | | ?????????????????????????????????????????????????? | | ?????????????????????????????????????????????????? | | ?????????????????????????????????????????????????? | +----------------------------------------------------+ Best States ------------- Heat Dissipation 28 Energy Generation 10 Energy Capacity 250 Matter Stores 300 Matter Capacity 300 Sight Range 16 Terrain Scan Density 10 Evasion (%) 63 Item Schematics ----------------- None Robot Schematics ------------------ None Fabricated ------------ Nothing Alien Tech Used ----------------- None Achievements -------------- None Challenges ------------ None Game ------ Seed ChromaticAblativeSpecial Manual? 0 Play Time 00:10:50 Cumulative 14.6 hours Start 2024.11.02 @ 03:35:35 End 2024.11.02 @ 03:45:37 Sessions 1 Manual Loads 0 Difficulty Rogue Special Mode None Game No. 24 Rogue 24 Adventurer 0 Explorer 0 Win Type - Total 0 Types 0/0/0/0/0/0/0/0/0 Lore% 6 Gallery% 19 Achievement% 16 Wizard Run 0 Options --------- Layout 1 ASCII 0 Keyboard 0 Movement Mouse Keybinds 0 Fullscreen 1 Font 24/Smallcaps Map View 50x35 Zoom Use 0% Tactical HUD 1 Map Filters NONE Filters NONE Steam 1 RUN: 4341ab7a-ffcc-4ecf-90f1-22b63b27c199